fUSD/lending_fUSD_20260527
["ID","MTS","AMOUNT","RATE_DAILY","PERIOD"]
[423129039,1779871839000,-4119.71418573,0.00028475,2]
[423129043,1779871839000,-150.0,0.00029,2]
[423129047,1779871839000,-151.63,0.00029302,2]
[423129046,1779871839000,-209.67,0.00029046,120]
[423129057,1779871839000,-1000.0,0.00030137,10]
[423129049,1779871839000,-173.79,0.00029463,30]
[423129048,1779871839000,-2000.0,0.0002932,120]
[423129053,1779871839000,-4119.71418573,0.00030025,2]
[423129052,1779871839000,-24017.08999655,0.00029889,2]
[423129050,1779871839000,-153.0,0.00029712,30]
[423129055,1779871839000,-1000.0,0.00030137,10]
[423129051,1779871839000,-408.5,0.00029859,120]
[423129056,1779871839000,-1000.0,0.00030137,10]
[423129038,1779871839000,-200.0,0.0002834,30]
[423129026,1779871839000,-400.63341878,0.000271,2]
[423129054,1779871839000,-1000.0,0.00030137,10]
[423129023,1779871839000,-200.0,0.00026964,2]
[423129024,1779871839000,-305.93697692,0.000271,2]
[423128998,1779871839000,-511.21191212,0.0002689,2]
[423129000,1779871839000,-511.21191212,0.0002689,2]
[423129002,1779871839000,-511.21191212,0.0002689,2]
[423128999,1779871839000,-511.21191212,0.0002689,2]
[423129001,1779871839000,-511.21191212,0.0002689,2]
[423129005,1779871839000,-511.21191212,0.0002689,2]
[423129004,1779871839000,-511.21191212,0.0002689,2]
[423129006,1779871839000,-511.21191212,0.0002689,2]
[423129003,1779871839000,-511.21191212,0.0002689,2]
[423129007,1779871839000,-511.21191212,0.0002689,2]
[423129008,1779871839000,-511.21191212,0.0002689,2]
[423129010,1779871839000,-511.21191212,0.0002689,2]
[423129012,1779871839000,-511.21191212,0.0002689,2]
[423128995,1779871839000,-511.21191212,0.0002689,2]
[423129009,1779871839000,-511.21191212,0.0002689,2]
[423129011,1779871839000,-511.21191212,0.0002689,2]
[423129021,1779871839000,-511.21191212,0.0002689,2]
[423129032,1779871839000,-384.18534949,0.000274,2]
[423129022,1779871839000,-511.21191212,0.0002689,2]
[423129020,1779871839000,-511.21191212,0.0002689,2]
[423129015,1779871839000,-511.21191212,0.0002689,2]
[423129025,1779871839000,-384.18534949,0.000271,2]
[423129018,1779871839000,-511.21191212,0.0002689,2]
[423129019,1779871839000,-511.21191212,0.0002689,2]
[423129017,1779871839000,-511.21191212,0.0002689,2]
[423129013,1779871839000,-511.21191212,0.0002689,2]
[423129016,1779871839000,-511.21191212,0.0002689,2]
[423129014,1779871839000,-511.21191212,0.0002689,2]
[423129099,1779871840000,-153.0,0.00033712,30]
[423129098,1779871840000,-151.63,0.00033488,2]
[423129097,1779871840000,-209.67,0.00033485,120]
[423129095,1779871840000,-4119.71418573,0.00033124,2]
[423129090,1779871840000,-153.0,0.00032712,30]
[423129091,1779871840000,-408.5,0.00032844,120]
[423129092,1779871840000,-690.04,0.00032951,2]
[423129094,1779871840000,-18854.83455276,0.00033103,2]
[423129104,1779871840000,-163.227334,0.00034003,21]
[423129088,1779871840000,-1526.393,0.00032327,32]
[423129089,1779871840000,-24017.08999655,0.00032585,2]
[423129093,1779871840000,-308.08370797,0.00033,120]
[423129105,1779871840000,-2315.97527725,0.0003402,2]
[423129100,1779871840000,-210.40860113,0.00033775,3]
[423129101,1779871840000,-308.08370797,0.000339,120]
[423129096,1779871840000,-1604.0,0.00033227,3]
[423129103,1779871840000,-541.36,0.00033977,30]
[423129107,1779871840000,-4119.71418573,0.00034674,2]
[423129116,1779871840000,-150.0,0.00034726,4]
[423129108,1779871840000,-153.0,0.00034712,30]
[423129109,1779871840000,-150.0,0.00034726,4]
[423129117,1779871840000,-150.0,0.00034726,4]
[423129115,1779871840000,-250.0,0.00034726,4]
[423129087,1779871840000,-172.26035448,0.00032327,32]
[423129114,1779871840000,-150.0,0.00034726,4]
[423129102,1779871840000,-24017.08999655,0.00033932,2]
[423129085,1779871840000,-18854.83455276,0.00032215,2]
[423129065,1779871840000,-8531.32,0.0003062,2]
[423129083,1779871840000,-308.08370797,0.00032,120]
[423129106,1779871840000,-150.0,0.00034554,15]
[423129058,1779871840000,-1000.0,0.00030137,10]
[423129060,1779871840000,-1000.0,0.00030176,10]
[423129071,1779871840000,-18854.83455282,0.00031326,2]
[423129072,1779871840000,-24999.99,0.00031426,2]
[423129059,1779871840000,-1000.0,0.00030137,10]
[423129061,1779871840000,-1000.0,0.00030313,10]
[423129062,1779871840000,-4609.0,0.00030413,2]
[423129063,1779871840000,-1000.0,0.0003045,10]
[423129066,1779871840000,-999.99,0.0003062,2]
[423129067,1779871840000,-499.99,0.0003062,2]
[423129069,1779871840000,-153.0,0.00030712,30]
[423129064,1779871840000,-9999.99,0.0003062,2]
[423129068,1779871840000,-151.63,0.00030697,2]
[423129074,1779871840000,-299.99,0.00031426,12]
[423129073,1779871840000,-150.99,0.00031426,2]
[423129076,1779871840000,-1283.71,0.00031426,2]
[423129077,1779871840000,-9999.99,0.00031426,2]
[423129079,1779871840000,-1759.40319424,0.0003143,2]
[423129082,1779871840000,-153.0,0.00031712,30]
[423129080,1779871840000,-4119.71418573,0.00031574,2]
[423129078,1779871840000,-212.38,0.00031426,2]
[423129075,1779871840000,-1136.96,0.00031426,10]
[423129081,1779871840000,-166.72,0.00031706,2]
[423129084,1779871840000,-151.63,0.00032093,2]
[423129086,1779871840000,-2000.0,0.00032252,120]
[423129110,1779871840000,-150.0,0.00034726,4]
[423129070,1779871840000,-24017.08999655,0.00031237,2]
[423129111,1779871840000,-150.0,0.00034726,4]
[423129147,1779871840000,-300.99795142,0.00035481,2]
[423129146,1779871840000,-300.0,0.00035481,2]
[423129151,1779871840000,-300.0,0.00035481,2]
[423129152,1779871840000,-1263.96825586,0.00035481,2]
[423129153,1779871840000,-344.45437934,0.00035481,2]
[423129150,1779871840000,-300.0,0.00035481,2]
[423129154,1779871840000,-527.62572404,0.00035481,2]
[423129157,1779871840000,-950.32029804,0.00035481,2]
[423129156,1779871840000,-865.6208675,0.00035481,2]
[423129160,1779871840000,-310.02493426,0.00035481,2]
[423129158,1779871840000,-300.09384644,0.00035481,2]
[423129159,1779871840000,-1148.83589152,0.00035481,2]
[423129148,1779871840000,-300.0,0.00035481,2]
[423129161,1779871840000,-300.0,0.00035481,2]
[423129164,1779871840000,-300.0,0.00035481,2]
[423129165,1779871840000,-464.48677942,0.00035481,2]
[423129163,1779871840000,-594.79850986,0.00035481,2]
[423129167,1779871840000,-578.28315025,0.00035481,2]
[423129174,1779871840000,-300.0,0.00035481,2]
[423129166,1779871840000,-300.0,0.00035481,2]
[423129169,1779871840000,-546.07975602,0.00035481,2]
[423129168,1779871840000,-452.52893397,0.00035481,2]
[423129170,1779871840000,-521.49128261,0.00035481,2]
[423129173,1779871840000,-310.28230408,0.00035481,2]
[423129172,1779871840000,-484.76763572,0.00035481,2]
[423129171,1779871840000,-300.0,0.00035481,2]
[423129162,1779871840000,-330.75882756,0.00035481,2]
[423129149,1779871840000,-300.0,0.00035481,2]
[423129113,1779871840000,-150.0,0.00034726,4]
[423129145,1779871840000,-302.21937029,0.00035481,2]
[423129155,1779871840000,-300.7654256,0.00035481,2]
[423129112,1779871840000,-150.0,0.00034726,4]
[423129130,1779871840000,-150.0,0.00035458,7]
[423129120,1779871840000,-184.48877466,0.00034726,4]
[423129125,1779871840000,-24017.08999655,0.0003528,2]
[423129123,1779871840000,-2000.0,0.00035184,120]
[423129118,1779871840000,-150.0,0.00034726,4]
[423129121,1779871840000,-151.63,0.00034883,2]
[423129122,1779871840000,-308.08370797,0.00035,120]
[423129131,1779871840000,-150.0,0.00035458,7]
[423129127,1779871840000,-150.00000001,0.00035458,7]
[423129119,1779871840000,-150.0,0.00034726,4]
[423129128,1779871840000,-150.0,0.00035458,7]
[423129129,1779871840000,-150.0,0.00035458,7]
[423129141,1779871840000,-528.48327171,0.00035481,2]
[423129140,1779871840000,-300.0,0.00035481,2]
[423129139,1779871840000,-300.0,0.00035481,2]
[423129138,1779871840000,-300.0,0.00035481,2]
[423129134,1779871840000,-493.38669858,0.00035481,2]
[423129137,1779871840000,-605.31118564,0.00035481,2]
[423129136,1779871840000,-300.0,0.00035481,2]
[423129133,1779871840000,-150.0,0.00035458,7]
[423129144,1779871840000,-727.07827244,0.00035481,2]
[423129132,1779871840000,-150.0,0.00035458,7]
[423129143,1779871840000,-894.65434383,0.00035481,2]
[423129142,1779871840000,-1068.40163352,0.00035481,2]
[423129135,1779871840000,-300.0,0.00035481,2]
[423129224,1779871841000,-480.03920667,0.00035481,2]
[423129212,1779871841000,-452.52893397,0.00035481,2]
[423129225,1779871841000,-565.10477641,0.00035481,2]
[423129223,1779871841000,-300.0,0.00035481,2]
[423129206,1779871841000,-310.02493426,0.00035481,2]
[423129208,1779871841000,-594.79850986,0.00035481,2]
[423129210,1779871841000,-464.48677942,0.00035481,2]
[423129209,1779871841000,-300.0,0.00035481,2]
[423129207,1779871841000,-300.0,0.00035481,2]
[423129215,1779871841000,-300.0,0.00035481,2]
[423129205,1779871841000,-1148.83589152,0.00035481,2]
[423129214,1779871841000,-300.0,0.00035481,2]
[423129236,1779871841000,-500.0,0.00035488,2]
[423129216,1779871841000,-300.0,0.00035481,2]
[423129221,1779871841000,-300.0,0.00035481,2]
[423129218,1779871841000,-310.28230408,0.00035481,2]
[423129222,1779871841000,-1096.2926835,0.00035481,2]
[423129219,1779871841000,-300.0,0.00035481,2]
[423129220,1779871841000,-300.0,0.00035481,2]
[423129226,1779871841000,-300.0,0.00035481,2]
[423129228,1779871841000,-493.38669858,0.00035481,2]
[423129229,1779871841000,-300.0,0.00035481,2]
[423129227,1779871841000,-300.0,0.00035481,2]
[423129230,1779871841000,-500.0,0.00035488,2]
[423129204,1779871841000,-300.09384644,0.00035481,2]
[423129217,1779871841000,-484.76763572,0.00035481,2]
[423129202,1779871841000,-865.6208675,0.00035481,2]
[423129197,1779871841000,-300.0,0.00035481,2]
[423129211,1779871841000,-578.28315025,0.00035481,2]
[423129233,1779871841000,-500.0,0.00035488,2]
[423129176,1779871841000,-1096.2926835,0.00035481,2]
[423129178,1779871841000,-371.57842453,0.00035481,2]
[423129180,1779871841000,-300.0,0.00035481,2]
[423129177,1779871841000,-300.0,0.00035481,2]
[423129179,1779871841000,-499.37863486,0.00035481,2]
[423129183,1779871841000,-300.0,0.00035481,2]
[423129181,1779871841000,-300.0,0.00035481,2]
[423129182,1779871841000,-493.38669858,0.00035481,2]
[423129184,1779871841000,-300.0,0.00035481,2]
[423129187,1779871841000,-300.0,0.00035481,2]
[423129185,1779871841000,-605.31118564,0.00035481,2]
[423129201,1779871841000,-527.62572404,0.00035481,2]
[423129186,1779871841000,-300.0,0.00035481,2]
[423129190,1779871841000,-894.65434383,0.00035481,2]
[423129194,1779871841000,-300.99795142,0.00035481,2]
[423129193,1779871841000,-300.0,0.00035481,2]
[423129195,1779871841000,-300.0,0.00035481,2]
[423129198,1779871841000,-300.0,0.00035481,2]
[423129192,1779871841000,-302.21937029,0.00035481,2]
[423129196,1779871841000,-300.0,0.00035481,2]
[423129191,1779871841000,-727.07827244,0.00035481,2]
[423129199,1779871841000,-1263.96825586,0.00035481,2]
[423129189,1779871841000,-1068.40163352,0.00035481,2]
[423129200,1779871841000,-344.45437934,0.00035481,2]
[423129203,1779871841000,-950.32029804,0.00035481,2]
[423129188,1779871841000,-528.48327171,0.00035481,2]
[423129235,1779871841000,-500.0,0.00035488,2]
[423129175,1779871841000,-300.0,0.00035481,2]
[423129231,1779871841000,-500.0,0.00035488,2]
[423129268,1779871841000,-500.0,0.000378,2]
[423129270,1779871841000,-500.0,0.000378,2]
[423129265,1779871841000,-500.0,0.000378,2]
[423129264,1779871841000,-500.0,0.000378,2]
[423129266,1779871841000,-500.0,0.000378,2]
[423129269,1779871841000,-500.0,0.000378,2]
[423129271,1779871841000,-500.0,0.000378,2]
[423129273,1779871841000,-500.0,0.000378,2]
[423129274,1779871841000,-844.26,0.000378,2]
[423129278,1779871841000,-24017.08999655,0.00037975,2]
[423129277,1779871841000,-209.67,0.00037923,120]
[423129276,1779871841000,-350.0,0.00037905,2]
[423129267,1779871841000,-500.0,0.000378,2]
[423129281,1779871841000,-150.0,0.00038084,7]
[423129279,1779871841000,-250.0,0.00037975,30]
[423129275,1779871841000,-1024.6556,0.00037868,30]
[423129282,1779871841000,-299.20813736,0.000381,33]
[423129283,1779871841000,-152.0,0.00038168,7]
[423129285,1779871841000,-1589.0,0.0003823,11]
[423129286,1779871841000,-541.36,0.00038247,30]
[423129287,1779871841000,-8312.5789924,0.00038248,2]
[423129291,1779871841000,-500.0,0.00038356,30]
[423129290,1779871841000,-500.0,0.00038356,30]
[423129284,1779871841000,-176.92,0.00038192,2]
[423129288,1779871841000,-13009.93,0.000383,2]
[423129234,1779871841000,-500.0,0.00035488,2]
[423129280,1779871841000,-153.0,0.00038,120]
[423129263,1779871841000,-500.0,0.000378,2]
[423129289,1779871841000,-13009.93,0.000383,2]
[423129272,1779871841000,-500.0,0.000378,2]
[423129261,1779871841000,-4119.71418573,0.00037773,2]
[423129237,1779871841000,-500.0,0.00035488,2]
[423129249,1779871841000,-541.36,0.00036583,30]
[423129248,1779871841000,-47278.0,0.000364,30]
[423129240,1779871841000,-6589.33410391,0.00035664,2]
[423129241,1779871841000,-153.0,0.00035712,30]
[423129238,1779871841000,-562.84,0.00035488,2]
[423129239,1779871841000,-152.805,0.00035616,60]
[423129243,1779871841000,-308.08370797,0.00036,120]
[423129242,1779871841000,-408.5,0.0003583,120]
[423129246,1779871841000,-4119.71418573,0.00036224,2]
[423129244,1779871841000,-527.0,0.00036066,13]
[423129245,1779871841000,-150.0,0.00036114,7]
[423129232,1779871841000,-500.0,0.00035488,2]
[423129259,1779871841000,-47278.0,0.000376,30]
[423129247,1779871841000,-151.63,0.00036279,2]
[423129262,1779871841000,-500.0,0.000378,2]
[423129255,1779871841000,-150.0,0.00037427,7]
[423129257,1779871841000,-150.0,0.00037427,7]
[423129253,1779871841000,-150.0,0.00036771,7]
[423129254,1779871841000,-21736.05753207,0.00036875,2]
[423129252,1779871841000,-159.28862893,0.00036723,60]
[423129258,1779871841000,-155.605,0.00037443,60]
[423129250,1779871841000,-161720.8652,0.00036583,30]
[423129260,1779871841000,-151.63,0.00037674,2]
[423129251,1779871841000,-24017.08999655,0.00036628,2]
[423129256,1779871841000,-150.0,0.00037427,7]
[423129328,1779871842000,-1200.0,0.00039193,120]
[423129342,1779871842000,-500.0,0.00039315,120]
[423129329,1779871842000,-500.0,0.00039193,120]
[423129325,1779871842000,-1337.07482,0.0003907,109]
[423129323,1779871842000,-1337.07481,0.0003907,109]
[423129327,1779871842000,-163.25,0.0003917,105]
[423129324,1779871842000,-1337.07482,0.0003907,109]
[423129326,1779871842000,-1337.07482,0.0003907,109]
[423129330,1779871842000,-383.00314955,0.0003921,11]
[423129320,1779871842000,-91579.56,0.00039022,13]
[423129335,1779871842000,-153.68828466,0.00039272,2]
[423129339,1779871842000,-153.68828466,0.00039303,2]
[423129334,1779871842000,-152.18000001,0.00039269,60]
[423129331,1779871842000,-250.0,0.00039226,30]
[423129333,1779871842000,-153.6882847,0.00039262,2]
[423129338,1779871842000,-13009.93,0.000393,2]
[423129336,1779871842000,-153.68828466,0.00039282,2]
[423129340,1779871842000,-153.68828466,0.00039313,2]
[423129337,1779871842000,-153.68828466,0.00039293,2]
[423129341,1779871842000,-167.9355991,0.00039315,120]
[423129344,1779871842000,-606.77997374,0.00039315,120]
[423129354,1779871842000,-2064.02,0.00039315,120]
[423129350,1779871842000,-2064.02,0.00039315,120]
[423129321,1779871842000,-10623.64,0.00039022,13]
[423129332,1779871842000,-250.0,0.00039226,30]
[423129319,1779871842000,-32594.188,0.00039,2]
[423129305,1779871842000,-505.059,0.00038672,2]
[423129315,1779871842000,-183.79221993,0.0003897,120]
[423129292,1779871842000,-500.0,0.00038356,30]
[423129295,1779871842000,-1068.0,0.000384,11]
[423129294,1779871842000,-13009.93,0.000384,2]
[423129293,1779871842000,-239.07788742,0.00038356,2]
[423129296,1779871842000,-383.00314959,0.00038424,10]
[423129303,1779871842000,-595.44453774,0.00038614,2]
[423129300,1779871842000,-383.00314955,0.00038424,10]
[423129302,1779871842000,-13009.93,0.000385,2]
[423129298,1779871842000,-383.00314955,0.00038424,10]
[423129301,1779871842000,-163.25,0.000385,60]
[423129297,1779871842000,-383.00314955,0.00038424,10]
[423129304,1779871842000,-234.0,0.00038632,60]
[423129299,1779871842000,-383.00314955,0.00038424,10]
[423129306,1779871842000,-1272.0,0.00038672,2]
[423129308,1779871842000,-276.0,0.00038672,2]
[423129317,1779871842000,-350.9413058,0.00039,30]
[423129316,1779871842000,-153.0,0.00039,120]
[423129310,1779871842000,-3636.0,0.00038672,2]
[423129309,1779871842000,-931.0,0.00038672,2]
[423129318,1779871842000,-160.0,0.00039,120]
[423129307,1779871842000,-150.0,0.00038672,2]
[423129312,1779871842000,-150.0,0.00038741,7]
[423129311,1779871842000,-500.0,0.00038716,120]
[423129313,1779871842000,-47278.0,0.000388,30]
[423129314,1779871842000,-163.25,0.0003884,86]
[423129322,1779871842000,-28127.54,0.00039022,13]
[423129348,1779871842000,-2064.02,0.00039315,120]
[423129352,1779871842000,-2064.02,0.00039315,120]
[423129349,1779871842000,-2064.02,0.00039315,120]
[423129382,1779871842000,-250.0,0.00039315,120]
[423129393,1779871842000,-27219.97026813,0.00039323,2]
[423129383,1779871842000,-155.42494154,0.00039322,120]
[423129392,1779871842000,-2054.67382843,0.00039323,2]
[423129381,1779871842000,-500.0,0.00039315,120]
[423129386,1779871842000,-153.68828466,0.00039323,2]
[423129387,1779871842000,-500.0,0.00039323,30]
[423129388,1779871842000,-24017.08999655,0.00039323,2]
[423129390,1779871842000,-623.00638131,0.00039323,2]
[423129391,1779871842000,-196.64301011,0.00039323,2]
[423129389,1779871842000,-4119.71418573,0.00039323,2]
[423129394,1779871842000,-288.46014155,0.00039324,2]
[423129398,1779871842000,-189.79106907,0.00039397,7]
[423129395,1779871842000,-162.5,0.00039362,30]
[423129401,1779871842000,-150.0,0.00039397,7]
[423129396,1779871842000,-33204.2289,0.00039362,2]
[423129399,1779871842000,-242.14827876,0.00039397,7]
[423129402,1779871842000,-150.0,0.00039397,7]
[423129411,1779871842000,-541.36,0.00039421,30]
[423129413,1779871842000,-300.0,0.00039423,10]
[423129414,1779871842000,-300.0,0.00039423,10]
[423129412,1779871842000,-500.0,0.00039422,30]
[423129415,1779871842000,-300.0,0.00039423,10]
[423129416,1779871842000,-300.0,0.00039423,10]
[423129343,1779871842000,-500.0,0.00039315,120]
[423129372,1779871842000,-242.223504,0.00039315,120]
[423129377,1779871842000,-500.0,0.00039315,120]
[423129397,1779871842000,-2000.0,0.00039362,2]
[423129373,1779871842000,-500.0,0.00039315,120]
[423129346,1779871842000,-2064.02,0.00039315,120]
[423129375,1779871842000,-500.0,0.00039315,120]
[423129345,1779871842000,-2064.02,0.00039315,120]
[423129353,1779871842000,-2064.02,0.00039315,120]
[423129347,1779871842000,-2064.02,0.00039315,120]
[423129351,1779871842000,-2064.02,0.00039315,120]
[423129363,1779871842000,-2064.02,0.00039315,120]
[423129356,1779871842000,-2064.02,0.00039315,120]
[423129355,1779871842000,-2064.02,0.00039315,120]
[423129359,1779871842000,-2064.02,0.00039315,120]
[423129357,1779871842000,-2064.02,0.00039315,120]
[423129358,1779871842000,-2064.02,0.00039315,120]
[423129366,1779871842000,-2064.02,0.00039315,120]
[423129361,1779871842000,-2064.02,0.00039315,120]
[423129364,1779871842000,-2064.02,0.00039315,120]
[423129374,1779871842000,-402.775957,0.00039315,120]
[423129370,1779871842000,-500.0,0.00039315,120]
[423129371,1779871842000,-500.0,0.00039315,120]
[423129378,1779871842000,-224.84,0.00039315,120]
[423129369,1779871842000,-500.0,0.00039315,120]
[423129380,1779871842000,-198.2496831,0.00039315,120]
[423129367,1779871842000,-2064.02,0.00039315,120]
[423129360,1779871842000,-2064.02,0.00039315,120]
[423129362,1779871842000,-2064.02,0.00039315,120]
[423129365,1779871842000,-2064.02,0.00039315,120]
[423129368,1779871842000,-2064.11430945,0.00039315,120]
[423129468,1779871843000,-151.0,0.00039423,30]
[423129458,1779871843000,-151.0,0.00039423,30]
[423129456,1779871843000,-151.0,0.00039423,30]
[423129452,1779871843000,-151.0,0.00039423,30]
[423129453,1779871843000,-151.0,0.00039423,30]
[423129451,1779871843000,-151.0,0.00039423,30]
[423129450,1779871843000,-151.0,0.00039423,30]
[423129445,1779871843000,-151.0,0.00039423,30]
[423129448,1779871843000,-151.0,0.00039423,30]
[423129455,1779871843000,-151.0,0.00039423,30]
[423129457,1779871843000,-279.450391,0.00039423,30]
[423129454,1779871843000,-151.0,0.00039423,30]
[423129460,1779871843000,-151.0,0.00039423,30]
[423129473,1779871843000,-151.0,0.00039423,30]
[423129459,1779871843000,-233.916755,0.00039423,30]
[423129467,1779871843000,-201.37303,0.00039423,30]
[423129462,1779871843000,-151.0,0.00039423,30]
[423129463,1779871843000,-151.0,0.00039423,30]
[423129466,1779871843000,-151.0,0.00039423,30]
[423129464,1779871843000,-151.0,0.00039423,30]
[423129465,1779871843000,-151.0,0.00039423,30]
[423129469,1779871843000,-151.0,0.00039423,30]
[423129471,1779871843000,-151.0,0.00039423,30]
[423129472,1779871843000,-151.0,0.00039423,30]
[423129480,1779871843000,-151.0,0.00039423,30]
[423129470,1779871843000,-151.0,0.00039423,30]
[423129449,1779871843000,-151.0,0.00039423,30]
[423129461,1779871843000,-151.0,0.00039423,30]
[423129447,1779871843000,-151.0,0.00039423,30]
[423129418,1779871843000,-300.0,0.00039423,10]
[423129444,1779871843000,-151.0,0.00039423,30]
[423129419,1779871843000,-151.0,0.00039423,30]
[423129420,1779871843000,-151.0,0.00039423,30]
[423129417,1779871843000,-300.0,0.00039423,10]
[423129474,1779871843000,-151.0,0.00039423,30]
[423129421,1779871843000,-151.0,0.00039423,30]
[423129423,1779871843000,-151.0,0.00039423,30]
[423129426,1779871843000,-151.0,0.00039423,30]
[423129424,1779871843000,-151.0,0.00039423,30]
[423129422,1779871843000,-217.609166,0.00039423,30]
[423129425,1779871843000,-151.0,0.00039423,30]
[423129432,1779871843000,-175.463028,0.00039423,30]
[423129428,1779871843000,-151.0,0.00039423,30]
[423129430,1779871843000,-151.0,0.00039423,30]
[423129429,1779871843000,-151.0,0.00039423,30]
[423129427,1779871843000,-151.0,0.00039423,30]
[423129431,1779871843000,-151.0,0.00039423,30]
[423129434,1779871843000,-151.0,0.00039423,30]
[423129433,1779871843000,-151.0,0.00039423,30]
[423129435,1779871843000,-151.0,0.00039423,30]
[423129436,1779871843000,-151.0,0.00039423,30]
[423129439,1779871843000,-176.8506,0.00039423,30]
[423129437,1779871843000,-151.0,0.00039423,30]
[423129438,1779871843000,-151.0,0.00039423,30]
[423129443,1779871843000,-195.101516,0.00039423,30]
[423129440,1779871843000,-151.0,0.00039423,30]
[423129441,1779871843000,-151.0,0.00039423,30]
[423129442,1779871843000,-151.0,0.00039423,30]
[423129446,1779871843000,-151.0,0.00039423,30]
[423129478,1779871843000,-151.0,0.00039423,30]
[423129536,1779871843000,-419.055256,0.00039423,30]
[423129479,1779871843000,-151.0,0.00039423,30]
[423129513,1779871843000,-151.0,0.00039423,30]
[423129515,1779871843000,-151.0,0.00039423,30]
[423129514,1779871843000,-191.283968,0.00039423,30]
[423129516,1779871843000,-151.0,0.00039423,30]
[423129517,1779871843000,-151.0,0.00039423,30]
[423129520,1779871843000,-552.718161,0.00039423,30]
[423129518,1779871843000,-151.0,0.00039423,30]
[423129519,1779871843000,-151.0,0.00039423,30]
[423129521,1779871843000,-552.718161,0.00039423,30]
[423129523,1779871843000,-180.840891,0.00039423,30]
[423129525,1779871843000,-151.0,0.00039423,30]
[423129526,1779871843000,-552.718161,0.00039423,30]
[423129535,1779871843000,-552.718161,0.00039423,30]
[423129534,1779871843000,-419.055256,0.00039423,30]
[423129529,1779871843000,-419.055256,0.00039423,30]
[423129527,1779871843000,-419.055256,0.00039423,30]
[423129530,1779871843000,-552.718161,0.00039423,30]
[423129528,1779871843000,-552.718161,0.00039423,30]
[423129524,1779871843000,-552.718161,0.00039423,30]
[423129533,1779871843000,-552.718161,0.00039423,30]
[423129531,1779871843000,-552.718161,0.00039423,30]
[423129532,1779871843000,-419.055256,0.00039423,30]
[423129537,1779871843000,-552.718161,0.00039423,30]
[423129539,1779871843000,-552.718161,0.00039423,30]
[423129540,1779871843000,-419.055256,0.00039423,30]
[423129538,1779871843000,-419.055256,0.00039423,30]
[423129541,1779871843000,-552.718161,0.00039423,30]
[423129511,1779871843000,-151.783121,0.00039423,30]
[423129522,1779871843000,-151.0,0.00039423,30]
[423129481,1779871843000,-151.0,0.00039423,30]
[423129510,1779871843000,-151.0,0.00039423,30]
[423129512,1779871843000,-151.0,0.00039423,30]
[423129476,1779871843000,-151.0,0.00039423,30]
[423129475,1779871843000,-151.0,0.00039423,30]
[423129477,1779871843000,-151.0,0.00039423,30]
[423129483,1779871843000,-151.0,0.00039423,30]
[423129494,1779871843000,-151.0,0.00039423,30]
[423129493,1779871843000,-151.0,0.00039423,30]
[423129492,1779871843000,-151.0,0.00039423,30]
[423129484,1779871843000,-151.0,0.00039423,30]
[423129486,1779871843000,-151.0,0.00039423,30]
[423129489,1779871843000,-151.0,0.00039423,30]
[423129482,1779871843000,-151.0,0.00039423,30]
[423129485,1779871843000,-284.737486,0.00039423,30]
[423129491,1779871843000,-151.0,0.00039423,30]
[423129490,1779871843000,-151.0,0.00039423,30]
[423129487,1779871843000,-151.0,0.00039423,30]
[423129488,1779871843000,-151.0,0.00039423,30]
[423129509,1779871843000,-151.0,0.00039423,30]